[Event "Late-Titled-Tuesday-Blitz-April-02-2024"]
[Site "Chess.com"]
[Date "2024.04.02"]
[Round "7"]
[White "jaskol95"]
[Black "arturdailima"]
[Result "1-0"]
[WhiteElo "2541"]
[BlackElo "2394"]
[TimeControl "180+1"]
[EndTime "15:18:27 PDT"]
[Termination "jaskol95 won by checkmate"]

1. e4 {[%clk 0:03:00.9]} 1... Nf6 {[%clk 0:02:59.9]} 2. e5 {[%clk 0:02:58.6]}
2... Nd5 {[%clk 0:03:00.4]} 3. c4 {[%clk 0:02:59.3]} 3... Nb6 {[%clk 0:03:00.2]}
4. a4 {[%clk 0:02:58.7]} 4... a5 {[%clk 0:02:59.7]} 5. Ra3 {[%clk 0:02:59.4]}
5... e6 {[%clk 0:02:58.5]} 6. Re3 {[%clk 0:03:00.1]} 6... Bb4 {[%clk 0:02:52.7]}
7. Nc3 {[%clk 0:02:59.3]} 7... Nc6 {[%clk 0:02:49.5]} 8. d4 {[%clk 0:02:58.8]}
8... Nxa4 {[%clk 0:02:47.1]} 9. Qxa4 {[%clk 0:02:54.9]} 9... Nxd4 {[%clk
0:02:44.3]} 10. Nf3 {[%clk 0:02:48.6]} 10... Nf5 {[%clk 0:02:42.9]} 11. Re4
{[%clk 0:02:46.5]} 11... b5 {[%clk 0:02:38.3]} 12. cxb5 {[%clk 0:02:39.6]} 12...
Bb7 {[%clk 0:02:38.4]} 13. Rg4 {[%clk 0:02:33.2]} 13... h5 {[%clk 0:02:37.9]}
14. Rf4 {[%clk 0:02:14.9]} 14... h4 {[%clk 0:02:33.6]} 15. Bd3 {[%clk 0:02:12]}
15... h3 {[%clk 0:02:32.1]} 16. g3 {[%clk 0:02:08.3]} 16... g5 {[%clk
0:02:24.6]} 17. Be4 {[%clk 0:01:57.5]} 17... gxf4 {[%clk 0:01:54.5]} 18. Bxb7
{[%clk 0:01:56.9]} 18... fxg3 {[%clk 0:01:50.7]} 19. hxg3 {[%clk 0:01:40.7]}
19... Rb8 {[%clk 0:01:48.1]} 20. Be4 {[%clk 0:01:41]} 20... d5 {[%clk
0:01:38.2]} 21. Bxf5 {[%clk 0:01:35.8]} 21... exf5 {[%clk 0:01:38.5]} 22. Bg5
{[%clk 0:01:36.3]} 22... Qd7 {[%clk 0:01:36.3]} 23. Nd4 {[%clk 0:01:28.7]} 23...
Rh5 {[%clk 0:01:32.2]} 24. Bf6 {[%clk 0:01:26.1]} 24... Kf8 {[%clk 0:01:24.7]}
25. Qd1 {[%clk 0:01:22.7]} 25... Rh7 {[%clk 0:01:22.3]} 26. Qf3 {[%clk
0:01:22.9]} 26... a4 {[%clk 0:01:05]} 27. Kf1 {[%clk 0:01:09.2]} 27... a3 {[%clk
0:00:58.1]} 28. bxa3 {[%clk 0:01:09.4]} 28... Bxa3 {[%clk 0:00:57.6]} 29. Nxd5
{[%clk 0:01:07]} 29... Bc5 {[%clk 0:00:52.1]} 30. Qxf5 {[%clk 0:00:18.7]} 30...
Qxf5 {[%clk 0:00:44.3]} 31. Nxf5 {[%clk 0:00:19.6]} 31... Rxb5 {[%clk
0:00:42.5]} 32. Nc3 {[%clk 0:00:19.4]} 32... Rb3 {[%clk 0:00:39.3]} 33. e6
{[%clk 0:00:17.5]} 33... fxe6 {[%clk 0:00:37.3]} 34. Nh4 {[%clk 0:00:16.7]}
34... Kf7 {[%clk 0:00:33.9]} 35. Be5 {[%clk 0:00:13.8]} 35... Bb4 {[%clk
0:00:32.1]} 36. Nd1 {[%clk 0:00:10.6]} 36... Rh5 {[%clk 0:00:25.3]} 37. Bf4
{[%clk 0:00:06.2]} 37... Rd5 {[%clk 0:00:24.8]} 38. Ke2 {[%clk 0:00:03.4]} 38...
Rb1 {[%clk 0:00:20.6]} 39. Rxh3 {[%clk 0:00:03.2]} 39... Rbxd1 {[%clk
0:00:18.6]} 40. Nf3 {[%clk 0:00:03.9]} 40... Ra1 {[%clk 0:00:17.5]} 41. Rh7+
{[%clk 0:00:03.9]} 41... Kg6 {[%clk 0:00:18.2]} 42. Rxc7 {[%clk 0:00:04.5]}
42... Ra2+ {[%clk 0:00:18.7]} 43. Kf1 {[%clk 0:00:05.2]} 43... Ra1+ {[%clk
0:00:19]} 44. Kg2 {[%clk 0:00:05.8]} 44... Bd6 {[%clk 0:00:17]} 45. Bxd6 {[%clk
0:00:05.1]} 45... Rxd6 {[%clk 0:00:17.9]} 46. Rc5 {[%clk 0:00:05.4]} 46... Kf6
{[%clk 0:00:17.8]} 47. g4 {[%clk 0:00:05.7]} 47... Ra4 {[%clk 0:00:17.2]} 48.
Kg3 {[%clk 0:00:06]} 48... Rd3 {[%clk 0:00:16.7]} 49. g5+ {[%clk 0:00:05.9]}
49... Kg6 {[%clk 0:00:16.7]} 50. Kg2 {[%clk 0:00:06]} 50... Raa3 {[%clk
0:00:15.7]} 51. Ne5+ {[%clk 0:00:06.2]} 51... Kg7 {[%clk 0:00:14]} 52. Nxd3
{[%clk 0:00:06.7]} 52... Rxd3 {[%clk 0:00:14.9]} 53. Re5 {[%clk 0:00:06.9]}
53... Kf7 {[%clk 0:00:12.6]} 54. f4 {[%clk 0:00:06.9]} 54... Rd1 {[%clk
0:00:13]} 55. Kf3 {[%clk 0:00:07.3]} 55... Rf1+ {[%clk 0:00:13.1]} 56. Ke4
{[%clk 0:00:07.9]} 56... Re1+ {[%clk 0:00:13.3]} 57. Kd4 {[%clk 0:00:08.5]}
57... Rd1+ {[%clk 0:00:13.9]} 58. Ke3 {[%clk 0:00:08.8]} 58... Re1+ {[%clk
0:00:14.3]} 59. Kd4 {[%clk 0:00:09.3]} 59... Rd1+ {[%clk 0:00:14.8]} 60. Ke4
{[%clk 0:00:10.1]} 60... Re1+ {[%clk 0:00:15.1]} 61. Kf3 {[%clk 0:00:10.8]}
61... Rf1+ {[%clk 0:00:15.9]} 62. Kg3 {[%clk 0:00:10.9]} 62... Rg1+ {[%clk
0:00:16.2]} 63. Kf2 {[%clk 0:00:11.6]} 63... Ra1 {[%clk 0:00:16.3]} 64. Rb5
{[%clk 0:00:11.5]} 64... Kg6 {[%clk 0:00:14.9]} 65. Re5 {[%clk 0:00:11.4]} 65...
Kf7 {[%clk 0:00:15.3]} 66. Re3 {[%clk 0:00:10.9]} 66... Rb1 {[%clk 0:00:14.2]}
67. Kf3 {[%clk 0:00:10.8]} 67... Rf1+ {[%clk 0:00:14.2]} 68. Ke4 {[%clk
0:00:11.5]} 68... Ra1 {[%clk 0:00:14.6]} 69. Rd3 {[%clk 0:00:05]} 69... Re1+
{[%clk 0:00:14.8]} 70. Kf3 {[%clk 0:00:04.3]} 70... Ra1 {[%clk 0:00:14.3]} 71.
Kg4 {[%clk 0:00:04.8]} 71... Rg1+ {[%clk 0:00:13.9]} 72. Rg3 {[%clk 0:00:05.2]}
72... Rh1 {[%clk 0:00:14]} 73. Rh3 {[%clk 0:00:05.9]} 73... Rg1+ {[%clk
0:00:14.2]} 74. Kf3 {[%clk 0:00:06.6]} 74... Rf1+ {[%clk 0:00:14.4]} 75. Ke3
{[%clk 0:00:07.2]} 75... Re1+ {[%clk 0:00:14.3]} 76. Kf2 {[%clk 0:00:07.8]}
76... Ra1 {[%clk 0:00:14.4]} 77. Rh7+ {[%clk 0:00:08.4]} 77... Kg6 {[%clk
0:00:14.4]} 78. Rh6+ {[%clk 0:00:09.1]} 78... Kf5 {[%clk 0:00:14.9]} 79. Rf6+
{[%clk 0:00:09.7]} 79... Kg4 {[%clk 0:00:15.3]} 80. g6 {[%clk 0:00:09.5]} 80...
Ra2+ {[%clk 0:00:08.3]} 81. Ke3 {[%clk 0:00:09.9]} 81... Ra3+ {[%clk 0:00:07.3]}
82. Ke4 {[%clk 0:00:10.5]} 82... Ra1 {[%clk 0:00:06.9]} 83. Ke5 {[%clk
0:00:10.6]} 83... Re1+ {[%clk 0:00:07.8]} 84. Kd6 {[%clk 0:00:11.2]} 84... Kh5
{[%clk 0:00:06.6]} 85. Rxe6 {[%clk 0:00:08.6]} 85... Rg1 {[%clk 0:00:07.1]} 86.
f5 {[%clk 0:00:08.8]} 86... Kh6 {[%clk 0:00:07.1]} 87. Ke7 {[%clk 0:00:09.3]}
87... Kg7 {[%clk 0:00:07.4]} 88. f6+ {[%clk 0:00:06.2]} 88... Kxg6 {[%clk
0:00:07.8]} 89. f7+ {[%clk 0:00:06.5]} 89... Kh7 {[%clk 0:00:08]} 90. f8=Q
{[%clk 0:00:06.3]} 90... Rg7+ {[%clk 0:00:08.7]} 91. Qxg7+ {[%clk 0:00:06.5]}
91... Kxg7 {[%clk 0:00:08.8]} 92. Rf6 {[%clk 0:00:07.2]} 92... Kg8 {[%clk
0:00:08.9]} 93. Rf7 {[%clk 0:00:07.6]} 93... Kh8 {[%clk 0:00:08.9]} 94. Kf6
{[%clk 0:00:08.5]} 94... Kg8 {[%clk 0:00:09.2]} 95. Kg6 {[%clk 0:00:09.4]} 95...
Kh8 {[%clk 0:00:09.5]} 96. Rf8# {[%clk 0:00:10.2]} 1-0

[Event "Late-Titled-Tuesday-Blitz-April-02-2024"]
[Site "Chess.com"]
[Date "2024.04.02"]
[Round "7"]
[White "moro182"]
[Black "mishanick"]
[Result "0-1"]
[WhiteElo "2896"]
[BlackElo "3046"]
[TimeControl "180+1"]
[EndTime "15:18:37 PDT"]
[Termination "mishanick won on time"]

1. d4 {[%clk 0:03:00.9]} 1... Nf6 {[%clk 0:02:59.8]} 2. Nf3 {[%clk 0:03:01]}
2... d5 {[%clk 0:02:59.5]} 3. c3 {[%clk 0:03:01.2]} 3... e6 {[%clk 0:02:56.7]}
4. Bf4 {[%clk 0:03:01]} 4... Bd6 {[%clk 0:02:57.3]} 5. e3 {[%clk 0:03:01.5]}
5... O-O {[%clk 0:02:56.7]} 6. Nbd2 {[%clk 0:03:01.5]} 6... c5 {[%clk
0:02:57.4]} 7. dxc5 {[%clk 0:03:01.5]} 7... Bxc5 {[%clk 0:02:52.5]} 8. Bd3
{[%clk 0:03:01.4]} 8... Nc6 {[%clk 0:02:51]} 9. O-O {[%clk 0:03:01.2]} 9... h6
{[%clk 0:02:51.7]} 10. h3 {[%clk 0:03:01.3]} 10... Bd6 {[%clk 0:02:51.6]} 11.
Bxd6 {[%clk 0:03:00.7]} 11... Qxd6 {[%clk 0:02:52.5]} 12. e4 {[%clk 0:03:01.4]}
12... Rd8 {[%clk 0:02:51.9]} 13. Qe2 {[%clk 0:02:36.4]} 13... dxe4 {[%clk
0:02:49]} 14. Bxe4 {[%clk 0:02:37.3]} 14... Nxe4 {[%clk 0:02:45.6]} 15. Nxe4
{[%clk 0:02:38.2]} 15... Qe7 {[%clk 0:02:45.9]} 16. Rad1 {[%clk 0:02:37.7]}
16... Bd7 {[%clk 0:02:46.3]} 17. Nd6 {[%clk 0:02:31.4]} 17... Be8 {[%clk
0:02:44.4]} 18. Nxe8 {[%clk 0:02:31]} 18... Qxe8 {[%clk 0:02:45.3]} 19. Rxd8
{[%clk 0:02:30.6]} 19... Rxd8 {[%clk 0:02:45.1]} 20. Rd1 {[%clk 0:02:31.5]}
20... Rd7 {[%clk 0:02:44.6]} 21. Rd2 {[%clk 0:02:27.1]} 21... Qd8 {[%clk
0:02:44]} 22. Qd1 {[%clk 0:02:27.3]} 22... Rxd2 {[%clk 0:02:43.6]} 23. Qxd2
{[%clk 0:02:28.2]} 23... Qa5 {[%clk 0:02:43.3]} 24. a3 {[%clk 0:02:24.9]} 24...
Qc7 {[%clk 0:02:42.2]} 25. Qd3 {[%clk 0:02:23]} 25... Na5 {[%clk 0:02:39.5]} 26.
Nd2 {[%clk 0:02:17.5]} 26... b6 {[%clk 0:02:38.7]} 27. g3 {[%clk 0:02:14.9]}
27... Nb7 {[%clk 0:02:37]} 28. Ne4 {[%clk 0:02:14.4]} 28... Qc6 {[%clk
0:02:33.7]} 29. c4 {[%clk 0:02:06.7]} 29... Kf8 {[%clk 0:02:34.1]} 30. Qd4
{[%clk 0:02:04.6]} 30... Ke7 {[%clk 0:02:32.1]} 31. Nc3 {[%clk 0:01:56.7]} 31...
f6 {[%clk 0:02:27.5]} 32. b4 {[%clk 0:01:52.4]} 32... Nd6 {[%clk 0:02:07.4]} 33.
c5 {[%clk 0:01:52.1]} 33... bxc5 {[%clk 0:02:06.7]} 34. bxc5 {[%clk 0:01:53]}
34... Nf7 {[%clk 0:02:06.9]} 35. f4 {[%clk 0:01:43.7]} 35... Qf3 {[%clk
0:02:03.4]} 36. Ne4 {[%clk 0:01:36.9]} 36... Qxa3 {[%clk 0:01:50.7]} 37. Kg2
{[%clk 0:01:25.6]} 37... Qa2+ {[%clk 0:01:45.7]} 38. Kf3 {[%clk 0:01:20.7]}
38... Qb3+ {[%clk 0:01:19.6]} 39. Nc3 {[%clk 0:01:19.6]} 39... Qb7+ {[%clk
0:01:16.2]} 40. Ke3 {[%clk 0:01:19.5]} 40... Qc6 {[%clk 0:01:10.1]} 41. Qb4
{[%clk 0:01:17.1]} 41... Nd8 {[%clk 0:01:09.7]} 42. Qa5 {[%clk 0:00:58.6]} 42...
Nb7 {[%clk 0:01:02.9]} 43. Qxa7 {[%clk 0:00:57.8]} 43... Qxc5+ {[%clk
0:01:03.6]} 44. Qxc5+ {[%clk 0:00:58.3]} 44... Nxc5 {[%clk 0:01:04.3]} 45. Ne2
{[%clk 0:00:58.1]} 45... Kd6 {[%clk 0:01:04.2]} 46. Nd4 {[%clk 0:00:58.1]} 46...
Kd5 {[%clk 0:01:04]} 47. Ne2 {[%clk 0:00:58.3]} 47... Na4 {[%clk 0:01:03.1]} 48.
g4 {[%clk 0:00:57.4]} 48... Nb6 {[%clk 0:01:00.6]} 49. Ng3 {[%clk 0:00:57.5]}
49... Nc4+ {[%clk 0:00:59.2]} 50. Kd3 {[%clk 0:00:57.5]} 50... Nd6 {[%clk
0:00:57.6]} 51. Nh5 {[%clk 0:00:56.2]} 51... Ne8 {[%clk 0:00:58.3]} 52. Ke3
{[%clk 0:00:56.5]} 52... g6 {[%clk 0:00:53.8]} 53. Ng3 {[%clk 0:00:56.4]} 53...
f5 {[%clk 0:00:53.9]} 54. gxf5 {[%clk 0:00:52.6]} 54... gxf5 {[%clk 0:00:53.7]}
55. Nh5 {[%clk 0:00:50.6]} 55... Kc4 {[%clk 0:00:51.8]} 56. h4 {[%clk
0:00:44.8]} 56... Kc3 {[%clk 0:00:51]} 57. Ng3 {[%clk 0:00:40.6]} 57... Nf6
{[%clk 0:00:51.4]} 58. Kf3 {[%clk 0:00:40.9]} 58... Kd3 {[%clk 0:00:47.4]} 59.
Ne2 {[%clk 0:00:40.4]} 59... Ne4 {[%clk 0:00:39.2]} 60. Nc1+ {[%clk 0:00:39.7]}
60... Kc2 {[%clk 0:00:35.9]} 61. Ne2 {[%clk 0:00:39.6]} 61... Kd3 {[%clk
0:00:34.8]} 62. Nc1+ {[%clk 0:00:40.2]} 62... Kc4 {[%clk 0:00:25.5]} 63. Ne2
{[%clk 0:00:32.7]} 63... Nf6 {[%clk 0:00:25.3]} 64. Ke3 {[%clk 0:00:30.4]} 64...
Ng4+ {[%clk 0:00:25.3]} 65. Kf3 {[%clk 0:00:30.2]} 65... Kd3 {[%clk 0:00:25.6]}
66. Nc1+ {[%clk 0:00:30.3]} 66... Kc3 {[%clk 0:00:24.9]} 67. Ne2+ {[%clk
0:00:30.3]} 67... Kc4 {[%clk 0:00:25.5]} 68. Ng3 {[%clk 0:00:29.3]} 68... Nf6
{[%clk 0:00:22.7]} 69. Ne2 {[%clk 0:00:29.2]} 69... Nd5 {[%clk 0:00:21.7]} 70.
Ng3 {[%clk 0:00:28.3]} 70... Ne7 {[%clk 0:00:15.4]} 71. Ne2 {[%clk 0:00:23.4]}
71... Ng6 {[%clk 0:00:12.7]} 72. h5 {[%clk 0:00:14.2]} 72... Ne7 {[%clk
0:00:13]} 73. Ke3 {[%clk 0:00:14]} 73... Nd5+ {[%clk 0:00:13.3]} 74. Kf3 {[%clk
0:00:13.6]} 74... Nf6 {[%clk 0:00:14]} 75. Ng3 {[%clk 0:00:11.3]} 75... Kd3
{[%clk 0:00:14.2]} 76. Ne2 {[%clk 0:00:04.2]} 76... Nxh5 {[%clk 0:00:14.1]} 77.
Nc1+ {[%clk 0:00:04.8]} 77... Kc4 {[%clk 0:00:13.1]} 78. Ne2 {[%clk 0:00:05.4]}
78... Nf6 {[%clk 0:00:13.7]} 79. Ng3 {[%clk 0:00:05.4]} 79... Kd3 {[%clk
0:00:13.7]} 80. Ne2 {[%clk 0:00:05.4]} 80... h5 {[%clk 0:00:13.4]} 81. Nc1+
{[%clk 0:00:06]} 81... Kc4 {[%clk 0:00:13.4]} 82. Kg3 {[%clk 0:00:05.1]} 82...
Kd4 {[%clk 0:00:12]} 83. Kh4 {[%clk 0:00:05.3]} 83... Ke4 {[%clk 0:00:12.3]} 84.
Kg5 {[%clk 0:00:03.9]} 84... Nd5 {[%clk 0:00:12.4]} 85. Ne2 {[%clk 0:00:03.7]}
85... Ke3 {[%clk 0:00:12.8]} 86. Ng3 {[%clk 0:00:04]} 86... Nxf4 {[%clk
0:00:13.2]} 87. Kh4 {[%clk 0:00:03.1]} 87... Kf3 {[%clk 0:00:13.4]} 88. Nf1
{[%clk 0:00:03.4]} 88... e5 {[%clk 0:00:11.4]} 89. Nd2+ {[%clk 0:00:03.8]} 89...
Ke3 {[%clk 0:00:11.2]} 90. Nc4+ {[%clk 0:00:04.3]} 90... Kd4 {[%clk 0:00:08.6]}
91. Nd6 {[%clk 0:00:04.5]} 91... e4 {[%clk 0:00:09.1]} 92. Nxf5+ {[%clk
0:00:04.4]} 92... Ke5 {[%clk 0:00:09.8]} 93. Ne3 {[%clk 0:00:03.2]} 93... Kf6
{[%clk 0:00:08.4]} 94. Kg3 {[%clk 0:00:02.4]} 94... Kg5 {[%clk 0:00:08.9]} 95.
Nf1 {[%clk 0:00:02.7]} 95... h4+ {[%clk 0:00:09.1]} 96. Kf2 {[%clk 0:00:03.3]}
96... Nd5 {[%clk 0:00:09.6]} 97. Kg2 {[%clk 0:00:03.1]} 97... Kf4 {[%clk
0:00:09.5]} 98. Kh3 {[%clk 0:00:03.6]} 98... Kg5 {[%clk 0:00:09.8]} 99. Kg2
{[%clk 0:00:03.8]} 99... Kg4 {[%clk 0:00:09.9]} 100. Kf2 {[%clk 0:00:02.7]}
100... Kf4 {[%clk 0:00:09.9]} 101. Kg2 {[%clk 0:00:02.7]} 101... Ne3+ {[%clk
0:00:10.3]} 0-1

[Event "Late-Titled-Tuesday-Blitz-April-02-2024"]
[Site "Chess.com"]
[Date "2024.04.02"]
[Round "7"]
[White "NikitaShnadrygin"]
[Black "XDPS"]
[Result "0-1"]
[WhiteElo "2682"]
[BlackElo "2919"]
[TimeControl "180+1"]
[EndTime "15:18:59 PDT"]
[Termination "XDPS won by resignation"]

1. e4 {[%clk 0:03:00.9]} 1... c5 {[%clk 0:02:59.8]} 2. Nf3 {[%clk 0:03:00.9]}
2... e6 {[%clk 0:03:00.4]} 3. d4 {[%clk 0:03:01.2]} 3... cxd4 {[%clk 0:03:01.3]}
4. Nxd4 {[%clk 0:03:02.1]} 4... a6 {[%clk 0:03:01.9]} 5. Bd3 {[%clk 0:02:59.5]}
5... Bc5 {[%clk 0:03:01.9]} 6. Nb3 {[%clk 0:02:59.1]} 6... Ba7 {[%clk
0:03:02.4]} 7. c4 {[%clk 0:02:59.8]} 7... Nc6 {[%clk 0:03:02.6]} 8. Qe2 {[%clk
0:03:00.4]} 8... d6 {[%clk 0:03:02.5]} 9. Be3 {[%clk 0:03:00.9]} 9... Nf6 {[%clk
0:03:03.2]} 10. O-O {[%clk 0:03:00.6]} 10... O-O {[%clk 0:03:03.6]} 11. Nc3
{[%clk 0:03:00.9]} 11... e5 {[%clk 0:03:01.1]} 12. Rfd1 {[%clk 0:02:59.4]} 12...
Be6 {[%clk 0:03:01.5]} 13. Rac1 {[%clk 0:02:55.8]} 13... Nd7 {[%clk 0:02:58]}
14. Bxa7 {[%clk 0:02:55.4]} 14... Rxa7 {[%clk 0:02:57.8]} 15. Qe3 {[%clk
0:02:55.8]} 15... b6 {[%clk 0:02:57.5]} 16. Nd5 {[%clk 0:02:52.1]} 16... Nc5
{[%clk 0:02:56.8]} 17. Nd2 {[%clk 0:02:28]} 17... a5 {[%clk 0:02:56.1]} 18. Be2
{[%clk 0:02:15.3]} 18... Rd7 {[%clk 0:02:53]} 19. Nb1 {[%clk 0:01:54.8]} 19...
Nd4 {[%clk 0:02:51.3]} 20. Nbc3 {[%clk 0:01:54.6]} 20... Qb8 {[%clk 0:02:49.5]}
21. Rxd4 {[%clk 0:01:47.2]} 21... exd4 {[%clk 0:02:49.6]} 22. Qxd4 {[%clk
0:01:48.1]} 22... Rc8 {[%clk 0:02:41.3]} 23. Rd1 {[%clk 0:01:42.3]} 23... h6
{[%clk 0:02:37.4]} 24. f4 {[%clk 0:01:41.5]} 24... Bxd5 {[%clk 0:02:24.5]} 25.
Nxd5 {[%clk 0:01:42.4]} 25... Re8 {[%clk 0:02:23.8]} 26. Bf3 {[%clk 0:01:30.8]}
26... b5 {[%clk 0:02:23.5]} 27. b3 {[%clk 0:01:23.1]} 27... bxc4 {[%clk
0:02:23.7]} 28. Qxc4 {[%clk 0:01:24]} 28... Ne6 {[%clk 0:02:09.1]} 29. g3 {[%clk
0:01:17.3]} 29... Rc8 {[%clk 0:02:02.6]} 30. Qd3 {[%clk 0:01:11]} 30... Nc5
{[%clk 0:01:57.8]} 31. Qe3 {[%clk 0:01:06.1]} 31... Re8 {[%clk 0:01:51.9]} 32.
Qd4 {[%clk 0:00:58.7]} 32... Qa7 {[%clk 0:01:31.1]} 33. Kg2 {[%clk 0:00:58]}
33... Rdd8 {[%clk 0:01:13.5]} 34. Ne3 {[%clk 0:00:50.1]} 34... Qb8 {[%clk
0:01:08.2]} 35. Nf5 {[%clk 0:00:45]} 35... Ne6 {[%clk 0:01:07.8]} 36. Qd2 {[%clk
0:00:45]} 36... a4 {[%clk 0:01:01.7]} 37. bxa4 {[%clk 0:00:42]} 37... Nc5 {[%clk
0:00:47.5]} 38. Nxd6 {[%clk 0:00:31.9]} 38... Nxe4 {[%clk 0:00:42.7]} 39. Bxe4
{[%clk 0:00:24.4]} 39... Rxe4 {[%clk 0:00:43.6]} 40. Nxe4 {[%clk 0:00:21]} 40...
Rxd2+ {[%clk 0:00:44.5]} 41. Rxd2 {[%clk 0:00:21.3]} 41... Qb4 {[%clk
0:00:39.7]} 42. Re2 {[%clk 0:00:18.5]} 42... Qxa4 {[%clk 0:00:38]} 43. f5 {[%clk
0:00:16.4]} 43... Kh7 {[%clk 0:00:36.9]} 44. f6 {[%clk 0:00:16.1]} 44... g5
{[%clk 0:00:36.2]} 45. g4 {[%clk 0:00:14.7]} 45... Qd7 {[%clk 0:00:33.7]} 46. h3
{[%clk 0:00:14.7]} 46... Qd3 {[%clk 0:00:33.9]} 47. Ng3 {[%clk 0:00:11.9]} 47...
Qd5+ {[%clk 0:00:31.8]} 48. Ne4 {[%clk 0:00:07.6]} 48... Kg6 {[%clk 0:00:31.5]}
49. Kf2 {[%clk 0:00:05.9]} 49... Qd4+ {[%clk 0:00:30.4]} 50. Re3 {[%clk
0:00:05.4]} 50... Qa7 {[%clk 0:00:27.4]} 51. a3 {[%clk 0:00:04.5]} 51... Qd4
{[%clk 0:00:26.8]} 52. Ng3 {[%clk 0:00:02.5]} 52... Qxf6+ {[%clk 0:00:26.1]} 53.
Ke2 {[%clk 0:00:01.8]} 53... Qb2+ {[%clk 0:00:25.2]} 54. Kf3 {[%clk 0:00:02.7]}
54... Qb7+ {[%clk 0:00:25.6]} 55. Kf2 {[%clk 0:00:02.9]} 55... Qb2+ {[%clk
0:00:23]} 56. Kf3 {[%clk 0:00:03]} 56... Qb1 {[%clk 0:00:19.5]} 57. Nf5 {[%clk
0:00:03.9]} 57... h5 {[%clk 0:00:17.3]} 58. Kf2 {[%clk 0:00:04.8]} 58... h4
{[%clk 0:00:15.3]} 59. Ne7+ {[%clk 0:00:04.3]} 59... Kf6 {[%clk 0:00:14.3]} 60.
Nd5+ {[%clk 0:00:04.3]} 60... Kg7 {[%clk 0:00:14.9]} 61. Ne7 {[%clk 0:00:04.8]}
61... Qb2+ {[%clk 0:00:13.2]} 62. Kf3 {[%clk 0:00:04.6]} 62... Qh2 {[%clk
0:00:11.6]} 63. Nf5+ {[%clk 0:00:05.5]} 63... Kf6 {[%clk 0:00:12.1]} 64. Ke4
{[%clk 0:00:06.4]} 64... Qg2+ {[%clk 0:00:12.1]} 65. Kd3 {[%clk 0:00:07.3]}
65... Qd5+ {[%clk 0:00:12.3]} 66. Ke2 {[%clk 0:00:07.6]} 66... Qg2+ {[%clk
0:00:12.6]} 67. Kd3 {[%clk 0:00:08.5]} 67... Qb2 {[%clk 0:00:13]} 68. Ke4 {[%clk
0:00:09.4]} 68... Qb7+ {[%clk 0:00:12.7]} 69. Kd3 {[%clk 0:00:09.6]} 69... Qd5+
{[%clk 0:00:12.5]} 70. Ke2 {[%clk 0:00:09.7]} 70... Qc4+ {[%clk 0:00:12.4]} 71.
Kf3 {[%clk 0:00:10.1]} 71... Qf1+ {[%clk 0:00:11.4]} 72. Ke4 {[%clk 0:00:10.6]}
72... Qg2+ {[%clk 0:00:11.5]} 73. Kd4 {[%clk 0:00:10.9]} 73... Kg6 {[%clk
0:00:10.5]} 74. Ke5 {[%clk 0:00:10.4]} 74... Qa8 {[%clk 0:00:09.8]} 75. Kd4
{[%clk 0:00:10.8]} 75... Qa7+ {[%clk 0:00:09.7]} 76. Kd5 {[%clk 0:00:11.4]}
76... Qa5+ {[%clk 0:00:09.1]} 77. Kd4 {[%clk 0:00:11.7]} 77... Qa4+ {[%clk
0:00:09.5]} 78. Kd5 {[%clk 0:00:12.2]} 78... f6 {[%clk 0:00:09.7]} 79. Kc5
{[%clk 0:00:12.2]} 79... Qa7+ {[%clk 0:00:09.6]} 80. Kd5 {[%clk 0:00:12.8]}
80... Qb7+ {[%clk 0:00:09.9]} 81. Ke6 {[%clk 0:00:12.8]} 81... Qc6+ {[%clk
0:00:08.8]} 82. Ke7 {[%clk 0:00:13]} 82... Qc5+ {[%clk 0:00:08.8]} 83. Ke6
{[%clk 0:00:13.3]} 83... Qc8+ {[%clk 0:00:08]} 84. Ke7 {[%clk 0:00:14.2]} 84...
Qa8 {[%clk 0:00:07.1]} 85. Kd6 {[%clk 0:00:14.7]} 85... Qa6+ {[%clk 0:00:07.1]}
86. Kd7 {[%clk 0:00:15.2]} 86... Kf7 {[%clk 0:00:07]} 87. Re7+ {[%clk
0:00:14.7]} 87... Kf8 {[%clk 0:00:07.4]} 88. Re3 {[%clk 0:00:15.6]} 88... Qb6
{[%clk 0:00:06.7]} 89. Re8+ {[%clk 0:00:15.4]} 89... Kf7 {[%clk 0:00:06.7]} 90.
Re7+ {[%clk 0:00:15.9]} 90... Kf8 {[%clk 0:00:07]} 91. Re8+ {[%clk 0:00:16.5]}
91... Kf7 {[%clk 0:00:07.6]} 92. Re7+ {[%clk 0:00:17.1]} 92... Kg8 {[%clk
0:00:08]} 93. Nh6+ {[%clk 0:00:14.8]} 93... Kh8 {[%clk 0:00:07.1]} 94. Ke8
{[%clk 0:00:11.9]} 94... f5 {[%clk 0:00:03.9]} 95. Nf7+ {[%clk 0:00:11]} 95...
Kg8 {[%clk 0:00:03.7]} 96. gxf5 {[%clk 0:00:09.6]} 96... Qb8+ {[%clk 0:00:02.7]}
97. Nd8 {[%clk 0:00:10.5]} 97... Qb5+ {[%clk 0:00:02.6]} 98. Rd7 {[%clk
0:00:10.2]} 98... Qxf5 {[%clk 0:00:03.3]} 99. Re7 {[%clk 0:00:08.9]} 99... Qb5+
{[%clk 0:00:03.1]} 100. Rd7 {[%clk 0:00:09.2]} 100... Qe5+ {[%clk 0:00:03.3]}
101. Re7 {[%clk 0:00:09]} 101... Qb5+ {[%clk 0:00:03.9]} 102. Rd7 {[%clk
0:00:09.6]} 102... g4 {[%clk 0:00:04.8]} 103. hxg4 {[%clk 0:00:09.3]} 103... h3
{[%clk 0:00:04.9]} 104. Ne6 {[%clk 0:00:10.2]} 104... Qxd7+ {[%clk 0:00:05]}
105. Kxd7 {[%clk 0:00:10.4]} 105... h2 {[%clk 0:00:05.9]} 0-1

[Event "Late-Titled-Tuesday-Blitz-April-02-2024"]
[Site "Chess.com"]
[Date "2024.04.02"]
[Round "8"]
[White "slidingknight2775"]
[Black "RichardShtivelband"]
[Result "1-0"]
[WhiteElo "2599"]
[BlackElo "2316"]
[TimeControl "180+1"]
[EndTime "15:23:21 PDT"]
[Termination "slidingknight2775 won by resignation"]

1. e4 {[%clk 0:03:00.9]} 1... e5 {[%clk 0:02:59.7]} 2. Nc3 {[%clk 0:02:59.3]}
2... Nf6 {[%clk 0:02:59.4]} 3. Nf3 {[%clk 0:02:59.7]} 3... Nc6 {[%clk
0:02:58.9]} 4. Bb5 {[%clk 0:03:00.4]} 4... Bd6 {[%clk 0:02:57.6]} 5. Bxc6 {[%clk
0:02:58]} 5... dxc6 {[%clk 0:02:57.5]} 6. d3 {[%clk 0:02:58.9]} 6... O-O {[%clk
0:02:54.6]} 7. h3 {[%clk 0:02:59.5]} 7... Nd7 {[%clk 0:02:53.9]} 8. O-O {[%clk
0:02:58.6]} 8... Re8 {[%clk 0:02:53.4]} 9. Be3 {[%clk 0:02:58.5]} 9... c5 {[%clk
0:02:52.9]} 10. a4 {[%clk 0:02:54.4]} 10... a6 {[%clk 0:02:51.7]} 11. Nd2 {[%clk
0:02:53.1]} 11... Nf8 {[%clk 0:02:50.9]} 12. Nc4 {[%clk 0:02:50.3]} 12... f6
{[%clk 0:02:50.2]} 13. a5 {[%clk 0:02:49.2]} 13... Ne6 {[%clk 0:02:49.6]} 14.
Ne2 {[%clk 0:02:43.7]} 14... Nd4 {[%clk 0:02:46.9]} 15. f4 {[%clk 0:02:43.7]}
15... Be6 {[%clk 0:02:36.6]} 16. fxe5 {[%clk 0:02:31.8]} 16... Bxe5 {[%clk
0:02:27.9]} 17. Nxe5 {[%clk 0:02:31.3]} 17... fxe5 {[%clk 0:02:28.7]} 18. b3
{[%clk 0:02:30.2]} 18... Qh4 {[%clk 0:02:20.4]} 19. Nxd4 {[%clk 0:02:08.7]}
19... cxd4 {[%clk 0:02:18.9]} 20. Bf2 {[%clk 0:02:08.7]} 20... Qg5 {[%clk
0:02:15.1]} 21. Kh1 {[%clk 0:02:03.7]} 21... Rf8 {[%clk 0:02:14.2]} 22. Bg1
{[%clk 0:02:03.8]} 22... Rxf1 {[%clk 0:02:10.6]} 23. Qxf1 {[%clk 0:02:04.7]}
23... Rf8 {[%clk 0:02:10.5]} 24. Qe2 {[%clk 0:02:04.8]} 24... Qf4 {[%clk
0:02:00.2]} 25. Bh2 {[%clk 0:01:58.5]} 25... Qf2 {[%clk 0:01:58.6]} 26. Qxf2
{[%clk 0:01:57.5]} 26... Rxf2 {[%clk 0:01:57.9]} 27. Rc1 {[%clk 0:01:58.1]}
27... c5 {[%clk 0:01:39.3]} 28. Bxe5 {[%clk 0:01:56.6]} 28... Rf7 {[%clk
0:01:23.2]} 29. Bd6 {[%clk 0:01:54]} 1-0